bitfinex/quotes_ETHUSD_20260108
["timestamp","ask_amount","ask_price","bid_price","bid_amount"]
[1767832692712,0.940101,3161.8,3161.3,3.16325513]
[1767832693737,0.940101,3161.8,3161.2,3.9327809]
[1767832695203,0.940101,3161.8,3161.2,7.09613658]
[1767832695497,0.940101,3161.8,3161.2,8.04963461]
[1767832695699,0.83,3161.9,3161.3,0.95349803]
[1767832696538,1.770101,3161.9,3161.3,0.95349803]
[1767832697237,0.942101,3161.9,3161.3,0.95349803]
[1767832697411,0.942101,3161.9,3161.2,3.9327809]
[1767832698621,0.942101,3161.9,3161.2,8.04963461]
[1767832699024,0.942101,3161.9,3161.6,0.001]
[1767832699221,0.942101,3161.9,3161.2,7.28017595]
[1767832699402,0.942101,3161.9,3161.2,7.76053707]
[1767832700431,0.96787162,3161.9,3161.2,4.59718139]
[1767832701930,0.96787162,3161.9,3161.2,7.76053707]
[1767832703332,0.942101,3161.9,3161.2,7.76053707]
[1767832703860,0.942101,3161.9,3161.3,0.95349803]
[1767832704039,0.96787162,3161.9,3161.3,0.95349803]
[1767832704205,0.942101,3161.9,3161.3,0.95349803]
[1767832704606,0.96787162,3161.9,3161.3,0.95349803]
[1767832705231,0.96787162,3161.9,3161.2,6.80703904]
[1767832705404,0.96787162,3161.9,3161.2,7.76053707]
[1767832706529,0.96787162,3161.9,3161.3,0.95349803]
[1767832707233,0.942101,3161.9,3161.3,0.95349803]
[1767832707837,0.96787162,3161.9,3161.4,3.16315556]
[1767832709221,0.002,3161.9,3161.5,0.95349803]
[1767832710546,0.002,3161.9,3161.5,4.1174945]
[1767832710842,0.002,3161.6,3161.5,0.95449803]
[1767832711535,0.002,3161.6,3161.5,0.001]
[1767832711842,0.002,3161.6,3161.2,0.48036112]
[1767832711843,0.002,3161.6,3161.1,4.11689534]
[1767832712010,0.002,3161.6,3161.2,0.45311004]
[1767832712210,0.002,3161.6,3161.2,3.6164576]
[1767832714839,0.97814508,3161.6,3161.0,0.41420509]
[1767832715040,0.97614508,3161.5,3161.0,3.16354021]
[1767832715746,0.97614508,3161.5,3161.0,3.16349198]
[1767832716111,0.002,3161.9,3161.6,0.90709969]
[1767832716712,0.002,3161.9,3161.7,3.16285542]
[1767832716918,0.002,3161.9,3161.8,1.6303823]
[1767832717117,0.002,3162.5,3162.1,0.90709969]
[1767832717318,0.002,3162.8,3162.3,0.90709969]
[1767832718932,0.002,3162.8,3162.4,0.90709969]
[1767832719354,0.002,3162.8,3162.3,3.16219657]
[1767832719544,0.002,3162.8,3162.4,0.40692963]
[1767832720052,0.002,3162.8,3162.0,0.90709969]
[1767832720053,0.97814508,3162.8,3162.0,0.90709969]
[1767832720254,0.97614508,3162.7,3162.1,0.90709969]
[1767832720429,0.002,3162.8,3162.3,0.90709969]
[1767832720755,0.002,3162.8,3162.3,4.06932615]
[1767832721129,0.002,3162.8,3162.3,0.90709969]
[1767832722147,0.002,3162.8,3162.3,4.06934556]
[1767832722341,0.002,3162.8,3162.3,4.79252461]
[1767832722856,0.002,3162.8,3162.3,3.88542492]
[1767832723154,0.002,3162.5,3162.3,3.88542492]
[1767832723830,0.002,3162.5,3162.3,0.72317905]
[1767832724031,0.002,3162.5,3162.3,3.16222252]
[1767832724353,0.002,3162.5,3162.4,0.90709969]
[1767832724523,0.002,3162.8,3162.5,0.90709969]
[1767832725459,0.002,3163.2,3162.7,0.90709969]
[1767832725959,0.002,3163.3,3163.0,0.90709969]
[1767832727354,0.002,3163.3,3163.1,3.16145553]
[1767832727669,0.002,3163.3,3163.1,3.88447559]
[1767832728248,0.002,3163.3,3163.1,4.79157528]
[1767832728448,0.002,3163.3,3163.1,1.63011975]
[1767832729275,0.002,3163.3,3163.1,0.72302006]
[1767832731078,0.002,3163.3,3163.1,3.88446855]
[1767832731376,0.002,3163.3,3163.2,0.38844686]
[1767832731762,0.002,3163.5,3163.2,4.45690213]
[1767832731967,0.002,3164.1,3163.3,0.90709969]
[1767832732541,0.97814508,3164.1,3163.3,0.90709969]
[1767832732747,0.002,3164.1,3163.3,0.90709969]
[1767832732946,0.002,3164.1,3163.5,0.90709969]
[1767832733253,0.97814508,3164.1,3163.5,0.90709969]
[1767832733477,1.0039157,3164.1,3163.4,0.76182577]
[1767832734362,0.97614508,3164.0,3163.3,3.16122506]
[1767832734883,0.97614508,3164.0,3163.4,3.16112756]
[1767832735044,0.97614508,3164.0,3163.4,3.16212756]
[1767832735743,0.97614508,3163.9,3163.4,0.001]
[1767832737053,0.97614508,3163.7,3163.4,0.001]
[1767832738594,0.97614508,3163.7,3162.7,0.90709969]
[1767832738595,0.97614508,3163.6,3162.7,0.90709969]
[1767832738752,0.97614508,3163.6,3160.9,8.06519679]
[1767832738753,0.97614508,3163.1,3162.4,3.16213235]
[1767832738956,0.97614508,3162.8,3162.0,3.16246317]
[1767832739279,0.97614508,3162.8,3161.8,0.90709969]
[1767832739280,0.97614508,3163.1,3162.2,0.90709969]
[1767832739451,4.91654878,3163.4,3162.2,0.90709969]
[1767832739452,0.828,3163.2,3162.4,0.90709969]
[1767832739645,0.18041451,3163.1,3162.4,0.90709969]
[1767832739849,1.15655959,3163.1,3162.3,3.16224557]
[1767832740245,1.15655959,3163.1,3162.4,0.90709969]
[1767832740490,0.828,3163.2,3162.4,0.93872124]
[1767832740691,0.97614508,3163.3,3162.4,0.93872124]
[1767832740986,3.1610027,3163.6,3162.4,0.93872124]
[1767832740987,0.97614508,3163.5,3162.4,0.93872124]
[1767832741799,0.97614508,3163.9,3162.7,0.90709969]
[1767832741997,0.97614508,3163.9,3162.9,0.99345878]
[1767832741998,0.94472014,3163.8,3162.9,0.99345878]
[1767832742202,0.94472014,3163.8,3163.0,4.15501426]
[1767832742518,0.94472014,3163.8,3163.1,0.93949084]
[1767832742806,0.828,3163.9,3163.1,0.93949084]
[1767832743010,1.95994416,3163.9,3163.1,0.93949084]
[1767832743375,1.73663724,3163.9,3163.1,0.93949084]
[1767832743689,0.828,3163.9,3163.1,0.93949084]
[1767832744202,0.828,3163.9,3163.1,4.10084883]
[1767832744610,4.89731808,3163.9,3163.1,4.10084883]
[1767832744914,0.90863724,3163.8,3163.1,4.10084883]
[1767832745280,0.90863724,3163.8,3163.0,3.16151504]
[1767832745993,0.90863724,3163.8,3163.0,3.5874943]
[1767832746380,0.90863724,3163.7,3163.0,0.42597926]
[1767832746588,0.93440786,3163.6,3162.9,3.16161455]
[1767832747022,0.93440786,3163.6,3163.3,0.001]
[1767832747322,0.002,3163.5,3163.3,0.001]
[1767832748523,0.91063724,3163.5,3163.3,0.001]
[1767832749144,0.91063724,3163.5,3162.8,3.1617554]
[1767832749358,0.91063724,3163.5,3162.8,3.88807318]
[1767832750634,0.93640786,3163.5,3162.8,3.88807318]
[1767832751650,0.91063724,3163.5,3162.8,3.88807318]
[1767832754616,0.91063724,3163.5,3162.8,0.72631778]
[1767832754815,0.91063724,3163.5,3162.8,3.8880612]
[1767832757727,0.002,3163.5,3162.9,0.93949084]
[1767832758151,0.91063724,3163.5,3162.9,0.93949084]
[1767832758356,0.02577062,3163.4,3162.9,0.93949084]
[1767832758852,0.02577062,3163.4,3162.8,3.8880612]
[1767832759053,0.93440786,3163.4,3162.8,3.16174342]
[1767832759463,0.93440786,3163.4,3163.1,0.001]
[1767832759755,0.02577062,3163.4,3163.1,0.001]
[1767832759956,0.02777062,3163.5,3163.1,0.001]
[1767832760269,0.93640786,3163.5,3163.1,0.001]
[1767832762152,0.91063724,3163.5,3163.1,0.001]
[1767832766182,0.93440786,3163.4,3163.1,0.001]
[1767832766553,0.02577062,3163.4,3163.1,0.001]
[1767832766779,0.02777062,3163.5,3163.1,0.001]
[1767832767189,0.002,3163.5,3163.1,0.001]
[1767832768155,0.002,3163.5,3163.1,0.94049084]
[1767832768562,0.002,3163.5,3163.2,0.93949084]
[1767832768762,0.002,3163.8,3163.5,0.93949084]
[1767832770051,0.002,3163.8,3163.5,4.10049068]
[1767832771287,0.002,3163.8,3163.4,3.16112366]
[1767832771476,0.002,3163.8,3163.5,0.41006145]
[1767832772806,0.002,3163.8,3163.3,4.10069053]
[1767832772807,0.002,3163.8,3163.3,0.93949084]
[1767832773108,0.002,3163.8,3163.6,0.97062671]
[1767832773708,0.002,3163.8,3163.4,4.13173357]
[1767832775330,0.002,3163.8,3163.1,0.001]
[1767832775331,0.94824061,3163.8,3163.1,0.001]
[1767832775512,0.97201123,3163.7,3163.1,0.001]
[1767832777006,0.94624061,3163.6,3163.1,0.001]
[1767832777778,0.94624061,3163.6,3162.8,3.16170754]
[1767832779631,0.94624061,3163.5,3162.8,3.16170754]
[1767832782843,0.94624061,3163.5,3163.1,0.001]
[1767832783333,0.94824061,3163.5,3163.1,0.001]
[1767832783534,0.94624061,3163.4,3163.1,0.001]
[1767832785432,0.94624061,3163.4,3162.7,3.16184545]
[1767832785606,0.94624061,3163.4,3162.7,3.15984545]
[1767832786610,0.94624061,3163.4,3162.7,4.13047216]
[1767832788453,0.94624061,3163.4,3162.7,7.29232753]
[1767832788658,0.94624061,3163.4,3162.7,8.02156028]
[1767832788819,0.02777062,3163.5,3162.8,0.97062671]
[1767832789449,0.02777062,3163.5,3162.9,4.13228215]
[1767832789450,0.002,3163.5,3162.9,4.13228215]
[1767832789630,0.002,3163.5,3163.0,0.97062671]
[1767832791326,0.002,3163.5,3163.1,0.97062671]
[1767832792346,0.002,3163.5,3163.2,0.97062671]
[1767832792557,0.002,3163.8,3163.5,0.97062671]
[1767832794675,0.002,3163.8,3163.7,0.97062671]
[1767832796252,0.002,3163.8,3163.5,0.97062671]
[1767832796451,0.002,3163.8,3163.5,1.38390114]
[1767832796652,0.002,3163.8,3163.6,0.97062671]
[1767832796853,0.002,3163.8,3163.5,0.41327443]
[1767832797085,0.94824061,3163.8,3163.3,0.001]
[1767832797254,0.02577062,3163.7,3163.3,0.001]
[1767832800779,0.02777062,3163.8,3163.3,0.97162671]
[1767832801080,0.002,3163.8,3163.3,0.97162671]
[1767832801986,0.90901084,3165.0,3163.8,0.92164313]
[1767832802281,0.90901084,3165.0,3164.0,0.92164313]
[1767832802883,0.90901084,3165.0,3164.2,0.9503604]
[1767832803287,0.92099183,3164.9,3164.2,0.9503604]
[1767832804654,0.92099183,3164.9,3164.1,0.9503604]
[1767832804983,0.40805534,3164.8,3164.1,0.9503604]
[1767832805394,1.32904717,3164.8,3164.1,0.9503604]
[1767832805688,3.15969238,3164.9,3164.1,0.9503604]
[1767832806058,4.08068421,3164.9,3164.1,0.9503604]
[1767832806251,0.92099183,3164.8,3164.1,0.9503604]
[1767832806451,0.92099183,3164.1,3163.1,0.9503604]
[1767832806655,0.92099183,3163.9,3163.0,0.9503604]
[1767832806966,0.92099183,3163.9,3163.1,0.9503604]
[1767832807353,4.08164824,3163.9,3163.1,0.9503604]
[1767832807552,0.92099183,3163.9,3163.1,4.11180694]
[1767832807757,0.002,3164.5,3163.2,0.98197395]
[1767832807964,0.002,3164.5,3163.5,0.9503604]
[1767832808165,0.002,3164.5,3163.7,0.9503604]
[1767832809096,0.002,3164.5,3163.9,0.9503604]
[1767832810920,0.002,3164.5,3163.9,4.11100326]
[1767832811295,0.002,3164.5,3164.0,0.9503604]
[1767832812019,0.002,3164.5,3164.2,0.9503604]
[1767832812491,0.002,3164.5,3164.1,0.9503604]
[1767832812901,0.002,3164.8,3164.5,0.9503604]
[1767832814137,0.002,3164.8,3164.6,0.9503604]
[1767832814329,0.002,3164.8,3164.4,4.11044044]
[1767832814531,0.002,3164.8,3164.5,0.41104404]
[1767832815008,0.002,3164.8,3164.5,4.52144203]
[1767832815246,0.002,3164.8,3164.5,0.41104404]
[1767832815539,0.002,3164.8,3164.4,4.11048095]
[1767832815709,0.002,3164.8,3164.5,3.16004627]
[1767832815910,0.002,3164.8,3164.5,4.11040667]
[1767832816310,0.002,3164.8,3164.5,0.9503604]
[1767832819207,0.002,3164.8,3164.5,4.11040715]
[1767832819408,0.002,3164.8,3164.5,4.83747204]
[1767832819608,0.002,3164.8,3164.5,1.67742529]
[1767832821142,0.002,3164.8,3164.5,0.9503604]
[1767832823827,0.002,3164.8,3164.5,4.11040292]
[1767832824321,0.002,3164.8,3164.6,0.9503604]
[1767832824915,0.002,3165.1,3164.7,0.9503604]
[1767832825116,0.002,3165.1,3164.6,0.9503604]
[1767832825316,0.002,3165.1,3164.8,0.9503604]
[1767832825622,0.002,3165.1,3164.7,7.36276601]
[1767832825623,0.92099183,3165.8,3165.1,0.9503604]
[1767832827256,4.07985085,3165.7,3164.9,4.10998897]
[1767832827417,0.92099183,3165.7,3165.0,0.9503604]
[1767832828944,0.92099183,3165.7,3164.8,4.11009485]
[1767832829152,0.92099183,3165.7,3164.8,4.94140224]
[1767832829522,4.07995063,3165.6,3164.9,0.9503604]
[1767832829948,0.92099183,3166.0,3164.9,0.9503604]
[1767832830244,1.74799183,3165.8,3164.9,0.9503604]
[1767832830819,0.002,3165.4,3164.9,0.9503604]
[1767832831022,0.002,3165.4,3165.0,1.36136989]
[1767832831240,0.002,3165.4,3164.8,0.9503604]
[1767832832632,0.92718662,3165.4,3164.6,0.93380192]
[1767832832953,0.92718662,3165.4,3164.4,0.93380192]
[1767832833455,0.92718662,3165.4,3164.5,3.16003595]
[1767832833753,0.92518662,3165.2,3164.4,0.93380192]
[1767832835420,0.92518662,3165.2,3164.4,4.09395562]
[1767832835627,4.08464445,3165.1,3164.4,0.93380192]
[1767832836057,0.92518662,3165.1,3164.4,0.93380192]
[1767832837555,4.08470443,3165.1,3164.4,0.93380192]
[1767832837955,3.15939755,3165.2,3164.5,0.93380192]
[1767832838160,0.92518662,3165.2,3164.5,0.93380192]
[1767832840061,0.92518662,3165.2,3164.5,4.09385162]
[1767832841029,4.08454702,3165.2,3164.5,0.93380192]
[1767832841235,4.08458359,3165.2,3164.5,0.93380192]
[1767832841834,0.92518662,3165.1,3164.5,0.93380192]
[1767832843366,0.92518662,3165.0,3164.4,0.40940042]
[1767832843744,0.92518662,3165.0,3164.7,0.001]
[1767832844038,0.92518662,3165.0,3164.4,4.09295753]
[1767832844365,0.92518662,3165.0,3164.4,4.09395201]
[1767832844567,0.92518662,3165.0,3164.4,0.93380192]
[1767832845561,0.92518662,3164.9,3164.0,1.76180192]
[1767832845735,0.92518662,3164.9,3164.1,4.09425127]
[1767832845936,0.92518662,3164.9,3164.2,4.09415189]
[1767832846136,0.92518662,3164.9,3164.3,4.12562129]
[1767832846433,1.33365925,3165.0,3164.4,0.93380192]
[1767832846634,0.92518662,3165.2,3164.5,0.93380192]
[1767832846969,0.002,3165.4,3164.7,0.93380192]
[1767832847154,0.002,3165.4,3164.8,0.96539949]
[1767832847340,0.92718662,3165.4,3164.8,0.96539949]
[1767832847848,0.92718662,3165.4,3164.8,0.93380192]
[1767832848347,0.92718662,3165.4,3164.5,0.93380192]
[1767832848662,0.92718662,3165.4,3164.7,0.93380192]
[1767832848855,4.08636081,3165.4,3164.7,0.93380192]
[1767832849055,0.92718662,3165.4,3164.7,0.93380192]
[1767832849255,0.92718662,3165.4,3164.7,4.09365645]
[1767832849845,4.08634709,3165.4,3164.7,0.93380192]
[1767832851356,4.08634709,3165.4,3164.7,1.34318093]
[1767832851539,0.92518662,3165.3,3164.4,4.09390151]
[1767832852272,6.32032094,3165.4,3164.2,4.09408966]
[1767832852273,0.92518662,3165.1,3164.2,4.09408966]
[1767832852446,0.92518662,3165.1,3164.3,0.93380192]
[1767832852958,0.92518662,3164.9,3164.3,0.93380192]
[1767832854207,0.92518662,3164.9,3164.1,0.93380192]
[1767832854371,0.92518662,3164.6,3163.8,3.78]
[1767832854673,0.92518662,3164.6,3163.8,3.16070112]
[1767832855267,0.92518662,3164.6,3163.7,3.16081267]
[1767832855471,0.92518662,3164.5,3163.7,3.88637807]
[1767832856047,0.92518662,3164.5,3163.7,3.88641004]
[1767832857242,0.92518662,3164.4,3163.7,3.88641004]
[1767832857646,0.92518662,3164.4,3163.7,0.7255654]
[1767832857876,0.92518662,3164.4,3163.5,4.09482605]
[1767832858450,0.92518662,3164.4,3163.4,0.828]
[1767832858451,0.92518662,3164.4,3163.7,3.16084318]
[1767832858646,0.92518662,3164.8,3163.8,0.93380192]
[1767832858848,0.92518662,3165.0,3164.0,0.93380192]
[1767832859044,0.002,3165.1,3164.0,0.93380192]
[1767832859278,0.002,3165.1,3164.4,0.93380192]
[1767832859475,0.002,3165.1,3164.5,1.76180192]
[1767832859644,0.002,3165.1,3164.6,0.96540149]
[1767832859843,0.002,3165.1,3164.6,1.79340149]
[1767832860448,0.002,3165.1,3164.6,0.96540149]
[1767832860645,0.002,3165.1,3164.6,1.79340149]
[1767832860852,0.002,3165.1,3164.6,1.76180192]
[1767832861367,0.002,3165.1,3164.7,0.828]
[1767832862954,0.92741683,3165.1,3164.6,3.33928907]
[1767832863161,0.92741683,3165.1,3160.4,0.001]
[1767832863162,0.92541683,3165.0,3164.2,0.93052105]
[1767832863360,0.92541683,3165.0,3164.2,4.09082837]
[1767832863778,0.92541683,3165.0,3164.2,3.16030732]
[1767832863961,0.92541683,3165.0,3164.3,0.828]
[1767832865269,0.92541683,3165.0,3164.3,3.98815934]
[1767832865452,0.92541683,3165.0,3164.3,3.16015934]
[1767832865658,0.92541683,3165.0,3164.3,3.98815934]
[1767832865859,0.002,3165.1,3164.4,0.93052105]
[1767832866282,0.002,3165.1,3164.6,0.93052105]
[1767832866870,0.002,3165.1,3164.6,0.96212061]
[1767832867259,0.002,3165.1,3164.7,3.15985717]
[1767832867480,0.002,3165.1,3164.7,7.25023539]
[1767832867679,0.002,3165.1,3164.8,1.55302354]
[1767832868676,0.95455,3165.1,3164.8,0.828]
[1767832868859,0.95455,3165.1,3164.7,0.828]
[1767832869778,0.95455,3165.1,3164.6,3.98795541]
[1767832870176,0.95455,3165.1,3164.4,3.16015192]
[1767832870376,0.95455,3165.1,3164.5,3.9879775]
[1767832870685,0.95455,3165.1,3164.5,3.96684971]
[1767832870889,0.95455,3165.1,3164.5,3.98799153]
[1767832871078,0.95455,3165.1,3164.5,3.15999153]
[1767832871391,0.95455,3165.1,3164.6,3.15995499]
[1767832871586,0.002,3165.1,3164.6,3.15995499]
[1767832871981,0.002,3165.1,3164.5,4.90840897]
[1767832872181,0.002,3165.1,3164.5,5.71527456]
[1767832872593,0.95455,3165.1,3164.5,4.88727456]
[1767832872792,0.95455,3165.1,3164.5,5.71527456]
[1767832873289,0.95455,3165.1,3164.5,3.9669179]
[1767832873473,0.95455,3165.1,3164.5,4.7949179]
[1767832873877,0.95455,3165.1,3164.5,3.9669179]
[1767832874195,0.95455,3165.1,3164.5,4.79489037]
[1767832875083,0.95455,3165.1,3164.5,4.88724703]
[1767832875284,0.95455,3165.1,3164.5,5.71524703]
[1767832876393,0.95455,3165.1,3164.5,4.88724703]
[1767832876716,0.95455,3165.1,3164.6,0.88753858]
[1767832878680,0.002,3165.1,3164.6,4.96784797]
[1767832880198,0.002,3164.8,3164.6,4.96784797]
[1767832881898,0.002,3165.1,3164.8,0.92035666]
[1767832882107,0.002,3165.1,3165.0,0.92035666]
[1767832882405,0.002,3165.4,3165.1,0.92035666]
[1767832882700,0.002,3165.4,3165.3,4.07761486]
[1767832883090,4.11302799,3166.1,3165.4,0.92035666]
[1767832883289,4.1112129,3165.9,3165.2,1.09519233]
[1767832883672,0.95255,3165.8,3165.3,0.828]
[1767832883974,0.95255,3165.8,3165.2,1.09519233]
[1767832884305,0.95255,3165.8,3165.3,0.42545862]
[1767832884500,0.95255,3165.8,3165.2,1.92319233]
[1767832884705,0.95255,3166.0,3165.3,0.92035666]
[1767832887571,0.95255,3166.0,3165.3,4.07954955]
[1767832887797,0.95455,3166.1,3165.4,0.92035666]
[1767832888283,0.002,3166.1,3165.4,0.92035666]
[1767832888716,0.95455,3166.1,3165.4,0.92035666]
[1767832888899,0.95455,3166.1,3165.2,0.17483567]
[1767832888900,0.95455,3165.7,3165.2,0.17483567]
[1767832889499,0.002,3165.7,3165.2,4.25450171]
[1767832889700,0.002,3165.7,3165.3,1.74455253]
[1767832890075,0.002,3165.7,3165.3,0.92035666]
[1767832890707,0.002,3165.7,3165.1,1.74835666]
[1767832891203,0.95455,3165.7,3164.9,4.07996534]
[1767832891381,0.95455,3165.7,3165.0,0.828]
[1767832891580,0.95455,3165.7,3165.0,3.98754226]
[1767832891783,0.95455,3165.7,3165.0,4.79430057]
[1767832891979,0.002,3165.4,3165.0,4.79430057]
[1767832892697,0.002,3165.4,3165.0,1.63475831]
[1767832892896,0.002,3165.4,3165.0,4.79430062]
[1767832893380,0.002,3165.4,3165.1,0.93792377]
[1767832893601,0.002,3165.7,3165.5,0.93792377]
[1767832893809,0.002,3165.7,3165.5,0.93592377]
[1767832896908,0.002,3165.7,3165.3,0.93792377]
[1767832897679,0.002,3165.7,3165.3,0.96951635]
[1767832898009,0.002,3165.7,3165.3,0.93792377]
[1767832898311,0.002,3165.7,3165.4,1.75250467]
[1767832898507,0.002,3165.7,3165.5,0.827]
[1767832903803,0.002,3165.7,3165.5,4.92397976]
[1767832906785,0.002,3165.7,3165.6,0.93792377]
[1767832906905,0.002,3165.7,3165.3,3.15925285]
[1767832907110,0.002,3165.7,3165.5,0.827]
[1767832909230,0.002,3165.7,3165.5,1.76492377]
[1767832913430,0.002,3165.7,3165.5,4.92395028]
[1767832913637,0.002,3165.7,3165.5,1.76492377]
[1767832913827,0.002,3165.7,3165.6,0.17649238]
[1767832914518,0.002,3165.7,3165.5,0.827]
[1767832915941,0.002,3166.1,3165.6,0.96951335]
[1767832916237,0.002,3166.1,3165.6,0.93792377]
[1767832916745,0.93734952,3166.4,3165.5,7.1451172]
[1767832916746,0.002,3166.4,3165.8,0.93792377]
[1767832917243,0.93734952,3166.4,3165.8,0.93792377]
[1767832918350,0.93734952,3166.4,3165.8,4.09667287]
[1767832921451,0.93734952,3166.4,3165.9,0.72555319]
[1767832921623,0.93734952,3166.4,3166.0,0.827]
[1767832922934,0.93734952,3166.4,3166.0,0.825]
[1767832924950,0.93734952,3166.4,3165.9,0.72555319]
[1767832925138,0.97772198,3166.3,3165.9,0.827]
[1767832925450,0.97772198,3166.3,3165.9,0.69114589]
[1767832925820,0.97772198,3166.2,3165.9,0.69114589]
[1767832926259,0.97772198,3166.2,3165.5,0.827]
[1767832926260,0.97772198,3166.1,3165.5,0.827]
[1767832926722,0.97772198,3166.1,3165.4,0.827]
[1767832926922,0.97772198,3166.1,3165.4,3.98615713]
[1767832927152,0.97772198,3165.9,3165.4,3.98615713]
[1767832928134,0.97772198,3165.9,3165.4,0.827]
[1767832928956,0.97772198,3165.9,3165.4,3.9861555]
[1767832929292,0.97772198,3165.9,3165.4,4.79679413]
[1767832931366,0.002,3166.0,3165.5,0.96087326]
[1767832932234,0.002,3166.0,3165.6,0.96087326]
[1767832932755,0.002,3166.0,3165.7,0.96087326]
[1767832934656,0.002,3166.3,3165.9,0.96087326]
[1767832934832,0.002,3166.3,3166.0,0.03158559]
[1767832935032,0.002,3166.3,3165.9,0.96087326]
[1767832938830,0.97972198,3166.3,3164.9,0.001]
[1767832939034,0.97972198,3166.3,3164.2,0.25952256]
[1767832939035,0.97772198,3165.7,3164.7,0.96087326]
[1767832939291,0.97772198,3165.7,3164.9,0.96087326]
[1767832939636,0.97772198,3165.7,3165.0,0.827]
[1767832941291,0.97772198,3165.6,3165.0,0.827]
[1767832942218,0.97772198,3165.6,3165.0,3.98651685]
[1767832942368,0.97772198,3165.6,3165.1,0.39865169]
[1767832943695,0.97772198,3165.6,3165.1,1.22565169]
[1767832943899,0.97772198,3165.6,3165.1,4.38507618]
[1767832944067,0.97772198,3165.6,3165.1,1.22565169]
[1767832944268,0.97772198,3165.6,3165.1,0.827]
[1767832945668,0.97772198,3165.6,3165.1,3.98645324]
[1767832946698,0.97772198,3165.6,3165.1,0.827]
[1767832948105,0.97772198,3165.6,3165.1,3.98645518]
[1767832948874,0.97772198,3165.6,3165.1,3.15945518]
[1767832949074,0.97772198,3165.6,3165.2,0.827]
[1767832949400,0.97772198,3165.5,3165.2,0.827]
[1767832949781,0.97772198,3165.5,3164.9,3.98662642]
[1767832949981,0.97772198,3165.5,3165.0,0.39866264]
[1767832950292,0.97772198,3165.5,3165.0,3.55822026]
[1767832951605,0.002,3165.4,3165.0,3.55822026]
[1767832951897,0.002,3165.4,3165.0,0.39866264]
[1767832952097,0.002,3165.4,3165.0,3.55820081]
[1767832953892,0.002,3165.4,3165.1,0.43852008]
[1767832954089,0.002,3165.4,3165.2,3.15935801]
[1767832954399,0.002,3165.4,3165.1,0.43852008]
[1767832954601,0.002,3165.4,3165.1,3.59790277]
[1767832966218,0.002,3165.4,3165.1,6.7573606]
[1767832966517,0.002,3165.4,3165.2,0.80730474]
[1767832967090,0.002,3165.7,3165.2,1.72432893]
[1767832968290,0.002,3165.7,3165.3,3.1592582]
[1767832968487,0.002,3166.0,3165.5,0.91702419]
[1767832972739,0.002,3166.0,3165.6,3.1589588]
[1767832973023,0.002,3166.0,3165.7,0.72350262]
[1767832975040,0.002,3166.0,3165.7,3.88233912]
[1767832977226,0.002,3166.0,3165.7,4.79936331]
[1767832977711,0.002,3166.0,3165.7,4.79736331]
[1767832982419,0.002,3166.0,3165.8,0.93340467]
[1767832982619,0.002,3166.3,3165.9,1.62426028]
[1767832982826,0.002,3166.3,3165.9,2.55766495]
[1767832983253,0.002,3166.3,3166.0,0.93340467]
[1767832983426,0.002,3166.3,3166.1,3.15845993]
[1767832984254,0.002,3166.3,3166.0,4.09192329]
[1767832984417,0.002,3166.3,3166.0,4.97940416]
[1767832989556,0.002,3166.3,3166.1,0.827]
[1767832990231,0.002,3166.3,3166.1,3.98541015]
[1767832990747,0.002,3166.3,3166.1,3.15841015]
[1767832990940,0.002,3166.3,3166.2,0.827]
[1767832991253,0.002,3166.3,3166.2,0.825]
[1767832991457,0.002,3166.7,3166.2,2.65468998]
[1767832991758,0.002,3166.7,3166.3,0.93340467]
[1767832992333,0.002,3166.7,3166.4,3.15816068]
[1767832993164,0.002,3166.7,3166.4,4.09156535]
[1767832993463,0.002,3167.3,3166.7,0.93340467]
[1767832993668,0.002,3167.3,3166.8,1.76040467]
[1767832993959,0.002,3167.3,3166.9,1.10944514]
[1767832994565,0.002,3167.3,3167.0,0.827]
[1767832995269,0.002,3167.3,3167.1,0.827]
[1767832996536,0.98575381,3167.3,3166.9,0.17604047]
[1767832996740,0.98575381,3167.3,3167.0,0.827]
[1767832996961,0.98575381,3167.3,3167.1,0.827]
[1767832997852,0.98575381,3167.3,3167.1,0.82582651]
[1767832998041,0.98575381,3167.3,3167.1,0.74313727]
[1767832998374,0.98375381,3167.2,3167.1,0.74313727]
[1767832999472,0.98375381,3167.2,3167.1,0.71614088]
[1767833000063,0.98375381,3167.2,3166.5,4.09141326]
[1767833000375,0.98375381,3167.2,3166.6,0.827]
[1767833000864,0.98375381,3167.1,3166.7,0.827]
[1767833001166,0.98375381,3167.0,3166.7,0.827]
[1767833002139,0.98375381,3167.0,3166.8,0.827]
[1767833006674,0.98375381,3167.0,3166.4,4.09154365]
[1767833006968,0.98375381,3167.0,3166.5,0.827]
[1767833007671,0.98375381,3167.0,3166.6,0.827]
[1767833007839,0.98375381,3166.9,3166.1,4.09180273]
[1767833008040,0.98375381,3166.9,3165.6,6.93891947]
[1767833008041,0.98375381,3166.9,3166.3,1.76040467]
[1767833008340,0.98375381,3167.1,3166.4,3.15815914]
[1767833008551,0.98375381,3167.1,3166.4,0.93340467]
[1767833008770,4.14130582,3167.1,3166.4,0.93340467]
[1767833008973,0.72986774,3167.0,3166.4,0.93340467]
[1767833009968,0.72986774,3167.0,3166.7,0.001]
[1767833011243,0.98375381,3167.2,3166.7,0.001]
[1767833012945,3.15933039,3167.3,3166.7,0.97926424]
[1767833013146,0.002,3167.3,3166.7,0.97926424]
[1767833013367,0.002,3167.3,3166.8,0.97826424]
[1767833013563,0.002,3167.3,3167.0,0.97826424]
[1767833014471,0.002,3167.3,3166.9,0.41370865]
[1767833014849,0.002,3167.3,3166.8,0.97826424]
[1767833015068,0.99747888,3167.3,3166.7,0.828]
[1767833015678,4.15478322,3167.3,3166.7,0.828]
[1767833016052,4.15478322,3167.3,3166.7,1.80626424]
[1767833017478,0.99747888,3167.3,3166.7,1.80626424]
[1767833017894,0.002,3167.3,3166.8,0.97826424]
[1767833019578,0.002,3167.3,3167.0,0.97826424]
[1767833020248,0.002,3167.3,3166.7,0.18162642]
[1767833020447,0.99747888,3167.3,3166.7,0.001]
[1767833021666,0.99547888,3167.1,3167.0,0.001]
[1767833021850,0.99547888,3166.9,3166.7,0.001]